{"text_format":"3","workbook":"xlsx","n_sheets":3,"sheets":["Gebäude 1","Gebäude 2","Formblatt"],"not_rendered":{"images":1,"macros":1,"defined_names":5},"read":"whole","date_system":"1900"}

{"sheet":"Gebäude 1","index":0,"n_rows":29,"n_cols":19,"rows_kept":29,"merged":[[0,0,0,4],[1,5,1,7],[1,8,1,12],[1,15,1,18],[3,5,4,7],[3,8,4,12],[6,5,6,7],[6,9,6,10],[6,11,6,12],[6,13,6,14],[6,15,6,18],[8,5,8,15],[9,5,10,5],[9,6,10,6],[9,7,10,7],[9,8,10,8],[9,9,10,9],[9,10,10,10],[9,11,10,11],[9,12,10,12],[9,13,10,13],[9,14,10,14],[9,15,10,15],[9,17,9,18]]}
["Bitte diese Spalten nicht löschen!",{"$nulls":4},"Gebäudeschadstoffkataster"]
[{"$nulls":5},"Firma, Adresse:",null,null,"Musterfirma",{"$nulls":5},"Gebäude:","Gebäudebezeichnung oder - Nr."]
[]
[{"$nulls":5},"Gebäudebeschreibung:",{"$nulls":8},"Baujahr: ",1965]
[]
[]
[{"$nulls":5},"Datum der Begehung:",{"$nulls":3},"Aktualisierungsdatum: ",null,"--",null,"Begehung durch: ",null,"Name, Firma"]
[]
[{"$nulls":5},"Legende: AS = schwachgebundes Asbest, AZ = Asbestzement, AF = festgebundenes Asbestprodukt, Amph = Amphibolasbest, Chrys = Chrysotilasbest, KMF = künstliche Mineralfasern"]
[{"$nulls":5},"\nNr.","\nEtage","\nRaum","\nPotenziell schadstoffhaltiges \nBauteil","\nPotentieller Schadstoff","\nMenge\nca.","\nFoto-Nr.","\nMaterial-probe-Nr.","\nvisuelle Bewert.","\nAnalysen-ergebnis","\nBemerkungen / Maßnahmen",null,"Bewertung Sanierungs-dringlichkeit"]
[1,2,3,4,5,{"$nulls":12},"am","Ergebn."]
[]
[{"$nulls":5},1]
[{"$nulls":5},2]
[{"$nulls":5},3]
[{"$nulls":5},4]
[{"$nulls":5},5]
[{"$nulls":5},6]
[{"$nulls":5},7]
[{"$nulls":5},8]
[{"$nulls":5},9]
[{"$nulls":5},10]
[{"$nulls":5},11]
[{"$nulls":5},12]
[{"$nulls":5},13]
[{"$nulls":5},14]
[{"$nulls":5},15]
[]
[{"$nulls":5},"Sie können beliebig viele weitere Zeilen einfügen"]

{"sheet":"Gebäude 2","index":1,"n_rows":29,"n_cols":19,"rows_kept":29,"merged":[[0,0,0,4],[1,5,1,7],[1,8,1,12],[1,15,1,18],[3,5,4,7],[3,8,4,12],[6,5,6,7],[6,9,6,10],[6,11,6,12],[6,13,6,14],[6,15,6,18],[8,5,8,15],[9,5,10,5],[9,6,10,6],[9,7,10,7],[9,8,10,8],[9,9,10,9],[9,10,10,10],[9,11,10,11],[9,12,10,12],[9,13,10,13],[9,14,10,14],[9,15,10,15],[9,17,9,18]]}
["Bitte diese Spalten nicht löschen!",{"$nulls":4},"Gebäudeschadstoffkataster"]
[{"$nulls":5},"Firma, Adresse:",null,null,{"$f":"'Gebäude 1'!I2","v":"Musterfirma"},{"$nulls":5},"Gebäude:","Gebäudebezeichnung oder - Nr."]
[]
[{"$nulls":5},"Gebäudebeschreibung:",{"$nulls":8},"Baujahr: "]
[]
[]
[{"$nulls":5},"Datum der Begehung:",{"$nulls":3},"Aktualisierungsdatum: ",null,"--",null,"Begehung durch: ",null,"Name, Firma"]
[]
[{"$nulls":5},"Legende: AS = schwachgebundes Asbest, AZ = Asbestzement, AF = festgebundenes Asbestprodukt, Amph = Amphibolasbest, Chrys = Chrysotilasbest, KMF = künstliche Mineralfasern"]
[{"$nulls":5},"\nNr.","\nEtage","\nRaum","\nPotenziell schadstoffhaltiges \nBauteil","\nPotentieller Schadstoff","\nMenge\nca.","\nFoto-Nr.","\nMaterial-probe-Nr.","\nvisuelle Bewert.","\nAnalysen-ergebnis","\nBemerkungen / Maßnahmen",null,"Bewertung Sanierungs-dringlichkeit"]
[1,2,3,4,5,{"$nulls":12},"am","Ergebn."]
[]
[{"$nulls":5},1]
[{"$nulls":5},2]
[{"$nulls":5},3]
[{"$nulls":5},4]
[{"$nulls":5},5]
[{"$nulls":5},6]
[{"$nulls":5},7]
[{"$nulls":5},8]
[{"$nulls":5},9]
[{"$nulls":5},10]
[{"$nulls":5},11]
[{"$nulls":5},12]
[{"$nulls":5},13]
[{"$nulls":5},14]
[{"$nulls":5},15]
[]
[{"$nulls":5},"Sie können beliebig viele weitere Zeilen einfügen"]

{"sheet":"Formblatt","index":2,"n_rows":59,"n_cols":11,"rows_kept":59,"hidden":true,"merged":[[0,0,0,6],[2,0,13,0],[2,1,13,1],[2,6,13,6],[2,7,13,7],[15,3,15,4],[16,3,16,4],[17,3,17,4],[18,3,18,4],[19,3,19,4],[20,3,20,4],[24,3,24,4],[25,3,25,4],[26,3,26,4],[27,3,27,4],[28,3,28,4],[29,3,29,4],[30,3,30,4],[31,3,31,4],[32,3,32,4],[33,3,33,4],[34,3,34,4],[35,3,35,4],[36,3,36,4],[37,3,37,4],[38,3,38,4],[39,3,39,4],[40,3,40,4],[41,3,41,4],[42,3,42,4],[43,3,43,4],[44,3,44,4],[45,3,45,4],[46,3,46,4],[47,3,47,4],[48,3,48,4],[49,3,49,4],[50,3,50,4],[51,3,51,4],[51,6,51,7],[52,3,52,4],[52,6,52,7],[53,3,53,4],[53,6,53,7],[54,3,54,4],[54,6,54,7],[56,0,56,3],[58,0,58,3]]}
["Asbestprodukte - Bewertung der Dringlichkeit einer Sanierung",{"$nulls":9},1]
[]
["  Gruppe","  Zeile",{"$nulls":4},"Bewertung","Bewertungszahl"]
[{"$nulls":3},"Firma"]
[]
[]
[{"$nulls":3},"Gebäude"]
[]
[]
[{"$nulls":3},"Raum"]
[]
[]
[{"$nulls":3},"Produkt"]
[]
[]
["I",null,null,"Art der Asbestverwendung",{"$nulls":6},{"$f":"IF(OR(G17=\"x\",G18=\"x\",G19=\"x\",G20=\"x\"),1,0)","v":0}]
[null,1,null,"Spritzasbest",{"$nulls":3},{"$f":"IF(G17=\"X\",K17,\"\")","v":""},null,null,20]
[null,2,null,"Asbesthaltiger Putz",{"$nulls":3},{"$f":"IF(G18=\"X\",K18,\"\")","v":""},null,null,10]
[null,3,null,"Leichte asbesthaltige Platten",{"$nulls":3},""]
[null,4,null,"Sonstige asbesthaltige Produkte",{"$nulls":3},""]
["II",null,null,"Asbestart",{"$nulls":3},"",null,null,{"$f":"IF(OR(G22=\"x\",G23=\"x\"),1,0)","v":0}]
[null,5,null,"Amphibol-Asbeste",{"$nulls":3},"",null,null,2]
[null,6,null,"Sonstige Asbeste",{"$nulls":3},"",null,null,0]
["III",null,null,"Struktur der Oberfläche des Asbestproduktes",{"$nulls":3},"",null,null,{"$f":"IF(OR(G25=\"x\",G26=\"x\",G27=\"x\"),1,0)","v":0}]
[null,7,null,"Aufgelockerte Faserstruktur",{"$nulls":3},"",null,null,10]
[null,8,null,"Feste Faserstruktur ohne oder mit nicht ausreichend dichter Oberflächenbeschichtung",{"$nulls":3},"",null,null,4]
[null,9,null,"Beschichtete, dichte Oberfläche",{"$nulls":3},"",null,null,0]
["IV",null,null,"Oberflächenzustand des Asbestproduktes",{"$nulls":3},"",null,null,{"$f":"IF(OR(G29=\"x\",G30=\"x\",G31=\"x\"),1,0)","v":0}]
[null,10,null,"Starke Beschädigungen",{"$nulls":3},"",null,null,6]
[null,11,null,"Leichte Beschädigungen",{"$nulls":3},"",null,null,3]
[null,12,null,"Keine Beschädigungen",{"$nulls":3},"",null,null,0]
["V",null,null,"Beeinträchtigung des Asbestprodukts von außen",{"$nulls":3},"",null,null,{"$f":"IF(OR(G33=\"x\",G34=\"x\",G35=\"x\",G36=\"x\",G37=\"x\",G38=\"x\",G39=\"x\",G40=\"x\",G41=\"x\"),1,0)","v":0}]
[null,13,null,"Produkt ist durch direkte Zugänglichkeit (Fußboden bis Greifhöhe) Beschädigungen ausgesetzt",{"$nulls":3},"",null,null,10]
[null,14,null,"Am Produkt werden gelegentlich Arbeiten durchgeführt",{"$nulls":3},"",null,null,10]
[null,15,null,"Produkt ist mechanischen Einwirkungen ausgesetzt",{"$nulls":3},"",null,null,10]
[null,16,null,"Produkt ist Erschütterungen ausgesetzt",{"$nulls":3},"",null,null,10]
[null,17,null,"Produkt ist starken klimatischen Wechselbeanspruchungen ausgesetzt",{"$nulls":3},"",null,null,10]
[null,18,null,"Produkt liegt im Bereich stärkerer Luftbewegungen",{"$nulls":3},"",null,null,10]
[null,19,null,"Im Raum mit dem asbesthaltigen Produkt sind starke Luftbewegungen vorhanden",{"$nulls":3},"",null,null,7]
[null,20,null,"Am Produkt kann bei unsachgemäßem Betrieb Abrieb auftreten",{"$nulls":3},"",null,null,3]
[null,21,null,"Das Produkt ist von außen nicht beeinträchtigt",{"$nulls":3},"",null,null,0]
["VI",null,null,"Raumnutzung",{"$nulls":3},"",null,null,{"$f":"IF(OR(G43=\"x\",G44=\"x\",G45=\"x\",G46=\"x\"),1,0)","v":0}]
[null,22,null,"Regelmäßig von Kindern, Jugendlichen und Sportlern benutzter Raum",{"$nulls":3},"",null,null,25]
[null,23,null,"Dauernd oder häufig von sonstigen Personen benutzter Raum",{"$nulls":3},"",null,null,20]
[null,24,null,"Zeitweise benutzter Raum",{"$nulls":3},"",null,null,15]
[null,25,null,"Nur selten benutzter Raum",{"$nulls":3},"",null,null,18]
["VII",null,null,"Lage des Produkts",{"$nulls":3},"",null,null,{"$f":"IF(OR(G48=\"x\",G49=\"x\",G50=\"x\",G51=\"x\"),1,0)","v":0}]
[null,26,null,"Unmittelbar im Raum",{"$nulls":3},"",null,null,25]
[null,27,null,"Im Lüftungssystem (Auskleidung oder Ummantelung undichter Kanäle) für den Raum",{"$nulls":3},"",null,null,25]
[null,28,null,"Hinter einer abgehängten undichten Decke oder Bekleidung",{"$nulls":3},"",null,null,25]
[null,29,null,"Hinter einer abgehängten dichten Decke oder Bekleidung, hinter staubdichter Unterfangung oder Beschichtung, außerhalb dichter Lüftungskanäle",{"$nulls":3},"",null,null,0]
[null,30,null,"Summe der Bewertungspunkte",null,null,{"$f":"SUM(H16:H31)+MAX(H33:H41)+SUM(H42:H51)","v":0},{"$nulls":3},{"$f":"K16+K21+K24+K28+K32+K42+K47","v":0}]
[null,31,null,"Sanierung unverzüglich erforderlich (Dringlichkeitsstufe I)",null,null,{"$f":"IF(G52>=80,\"X\",\"\")","v":""}]
[null,32,null,"Neubewertung mittelfristig erforderlich  (Dringlichkeitsstufe II)",null,null,{"$f":"IF(AND(G52>=70,G52<80),\"X\",\"\")","v":""}]
[null,33,null,"Neubewertung langfristig erforderlich (Dringlichkeitsstufe III)",null,null,{"$f":"IF(AND(G52<70, G52>0),\"X\",\"\")","v":""},{"$nulls":3},{"$f":"IF(G53=\"x\",\"1\",IF(G54=\"x\",\"2\",IF(G55=\"x\",\"3\",\"\")))","v":""}]
[]
["Bewertung durch:",{"$nulls":3},"Dieter Hubich"]
[]
["Datum der Bewertung:",{"$nulls":3},{"$f":"TODAY()","v":"2017-02-08"}]